fUST/lending_fUST_20250131
["ID","MTS","AMOUNT","RATE_DAILY","PERIOD"]
[351003418,1738282248628,-500.0,0.00016711,2]
[351003420,1738282248646,-313.92,0.00016711,2]
[351003422,1738282248656,-500.0,0.00016711,2]
[351003424,1738282248665,-500.0,0.00016711,2]
[351003426,1738282248677,-151.0,0.00016711,2]
[351003428,1738282248687,-151.0,0.00016711,2]
[351003430,1738282248697,-151.0,0.00016711,2]
[351003432,1738282248706,-160.0,0.00016711,2]
[351003434,1738282248717,-500.0,0.00016712,2]
[351003436,1738282248727,-500.0,0.00016712,2]
[351003438,1738282248737,-500.0,0.00016712,2]
[351003440,1738282248747,-500.0,0.00016712,2]
[351003442,1738282248759,-500.0,0.00016712,2]
[351003444,1738282248769,-500.0,0.00016712,2]
[351003446,1738282248780,-500.0,0.00016712,2]
[351003448,1738282248790,-500.0,0.00016712,2]
[351003450,1738282248800,-500.0,0.00016712,2]
[351003452,1738282248809,-500.0,0.00016712,2]
[351003454,1738282248818,-597.20458528,0.00016712,2]
[351003455,1738282248828,-500.0,0.00016712,2]
[351003458,1738282248840,-584.07744129,0.00016712,2]
[351003459,1738282248850,-500.0,0.00016712,2]
[351003461,1738282248860,-500.0,0.00016712,2]
[351003463,1738282248870,-201.428535,0.00016712,2]
[351003465,1738282248880,-151.0,0.00016712,2]
[351003467,1738282248889,-500.0,0.00016712,2]
[351003469,1738282248898,-500.0,0.00016712,2]
[351003471,1738282248908,-584.52,0.00016712,2]
[351003473,1738282248917,-500.0,0.00016712,2]
[351003475,1738282248926,-247.685621,0.00016712,2]
[351003478,1738282248937,-247.685621,0.00016712,2]
[351003479,1738282248948,-500.0,0.00016712,2]
[351003482,1738282248960,-500.0,0.00016712,2]
[351003484,1738282248972,-151.0,0.00016712,2]
[351003486,1738282248984,-500.0,0.00016712,2]
[351003488,1738282248994,-214.43047,0.00016712,2]
[351003490,1738282249005,-500.0,0.00016712,2]
[351003492,1738282249015,-500.0,0.00016712,2]
[351003494,1738282249024,-644.93,0.00016712,2]
[351003496,1738282249035,-500.0,0.00016712,2]
[351003498,1738282249044,-500.0,0.00016712,2]
[351003500,1738282249054,-500.0,0.00016712,2]
[351003502,1738282249064,-500.0,0.00016712,2]
[351003504,1738282249074,-500.0,0.00016712,2]
[351003506,1738282249084,-500.0,0.00016712,2]
[351003508,1738282249093,-489.9791227,0.00016712,2]
[351003510,1738282249102,-151.0,0.00016712,2]
[351003512,1738282249111,-500.0,0.00016712,2]
[351003514,1738282249120,-1779.75,0.00016712,2]
[351003516,1738282249130,-500.0,0.00016712,2]
[351003518,1738282249139,-500.0,0.00016712,2]
[351003520,1738282249149,-500.0,0.00016712,2]
[351003521,1738282249159,-500.0,0.00016712,2]
[351003523,1738282249169,-643.6971089,0.00016712,2]
[351003525,1738282249180,-500.0,0.00016712,2]
[351003527,1738282249190,-1209.5,0.00016712,2]
[351003529,1738282249200,-804.07,0.00016712,2]
[351003531,1738282249209,-479.668886,0.00016712,2]
[351003533,1738282249219,-500.0,0.00016712,2]
[351003535,1738282249229,-479.668886,0.00016712,2]
[351003537,1738282249239,-500.0,0.00016712,2]
[351003539,1738282249249,-984.76,0.00016712,2]
[351003541,1738282249259,-500.0,0.00016712,2]
[351003543,1738282249268,-328.206416,0.00016712,2]
[351003545,1738282249279,-151.0,0.00016712,2]
[351003547,1738282249289,-500.0,0.00016712,2]
[351003549,1738282249299,-1603.06,0.00016712,2]
[351003551,1738282249309,-328.206416,0.00016712,2]
[351003553,1738282249319,-500.0,0.00016712,2]
[351003555,1738282249330,-500.0,0.00016712,2]
[351003557,1738282249341,-173.731623,0.00016712,2]
[351003559,1738282249355,-500.0,0.00016712,2]
[351003561,1738282249365,-2217.1,0.00016712,2]
[351003563,1738282249376,-173.731623,0.00016712,2]
[351003565,1738282249386,-151.0,0.00016712,2]
[351003566,1738282249396,-350.0,0.00016712,2]
[351003567,1738282249406,-151.0,0.00016712,2]
[351003568,1738282249416,-6057.22,0.00016712,2]
[351003569,1738282249425,-500.0,0.00016712,2]
[351003570,1738282249435,-500.0,0.00016712,2]
[351003571,1738282249444,-497.84704338,0.00016712,2]
[351003572,1738282249453,-151.0,0.00016712,2]
[351003573,1738282249462,-151.0,0.00016712,2]
[351003574,1738282249471,-17725.04,0.00016712,2]
[351003575,1738282249481,-500.0,0.00016712,2]
[351003576,1738282249490,-500.0,0.00016712,2]
[351003577,1738282249500,-500.0,0.00016712,2]
[351003578,1738282249510,-500.0,0.00016712,2]
[351003579,1738282249521,-2497.57,0.00016712,2]
[351003580,1738282249530,-500.0,0.00016712,2]
[351003581,1738282249540,-1805.63,0.00016712,2]
[351003582,1738282249550,-500.0,0.00016712,2]
[351003583,1738282249559,-800.82,0.00016712,2]
[351003584,1738282249568,-416.97,0.00016712,2]
[351003585,1738282249578,-3337.89,0.00016712,2]
[351003586,1738282249588,-515.22,0.00016712,2]
[351003596,1738282249666,-500.0,0.00016712,2]
[351003598,1738282249685,-206.734186,0.00016712,2]
[351003599,1738282249695,-500.0,0.00016712,2]
[351003601,1738282249704,-206.734186,0.00016712,2]
[351003603,1738282249715,-500.0,0.00016712,2]
[351003605,1738282249724,-500.0,0.00016712,2]
[351003607,1738282249734,-500.0,0.00016712,2]
[351003609,1738282249743,-358.586509,0.00016712,2]
[351003611,1738282249753,-358.586509,0.00016712,2]
[351003613,1738282249763,-519.41,0.00016712,2]
[351003615,1738282249773,-500.0,0.00016712,2]
[351003617,1738282249782,-500.0,0.00016712,2]
[351003619,1738282249792,-500.0,0.00016712,2]
[351003621,1738282249801,-500.0,0.00016712,2]
[351003623,1738282249810,-500.0,0.00016712,2]
[351003625,1738282249821,-184.408497,0.00016712,2]
[351003627,1738282249830,-500.0,0.00016712,2]
[351003628,1738282249841,-184.408497,0.00016712,2]
[351003630,1738282249850,-792.17,0.00016712,2]
[351003632,1738282249859,-500.0,0.00016712,2]
[351003634,1738282249869,-1783.16,0.00016712,2]
[351003636,1738282249879,-500.0,0.00016712,2]
[351003638,1738282249889,-594.78,0.00016712,2]
[351003640,1738282249899,-151.0,0.00016712,2]
[351003642,1738282249909,-1541.87,0.00016712,2]
[351003644,1738282249918,-151.0,0.00016712,2]
[351003646,1738282249927,-500.0,0.00016712,2]
[351003648,1738282249937,-500.0,0.00016712,2]
[351003650,1738282249946,-504.57467689,0.00016712,2]
[351003652,1738282249956,-755.71,0.00016712,2]
[351003654,1738282249965,-151.0,0.00016712,2]
[351003656,1738282249974,-617.74,0.00016712,2]
[351003658,1738282249984,-2582.3,0.00016712,2]
[351003660,1738282249994,-2657.34,0.00016712,2]
[351003662,1738282250003,-500.0,0.00016712,2]
[351003664,1738282250014,-500.0,0.00016712,2]
[351003666,1738282250022,-500.0,0.00016712,2]
[351003668,1738282250032,-500.0,0.00016712,2]
[351003670,1738282250043,-603.63,0.00016712,2]
[351003672,1738282250054,-151.0,0.00016712,2]
[351003674,1738282250063,-500.0,0.00016712,2]
[351003676,1738282250072,-151.0,0.00016712,2]
[351003678,1738282250083,-500.0,0.00016712,2]
[351003680,1738282250095,-500.0,0.00016712,2]
[351003682,1738282250105,-500.0,0.00016712,2]
[351003684,1738282250116,-151.0,0.000168,2]
[351003686,1738282250126,-151.0,0.000168,2]
[351003688,1738282250135,-206.734186,0.000168,2]
[351003690,1738282250146,-206.734186,0.000168,2]
[351003692,1738282250155,-500.0,0.00016848,2]
[351003694,1738282250164,-500.0,0.00016848,2]
[351003696,1738282250175,-206.38415798,0.00016848,2]
[351003698,1738282250185,-173.31736319,0.00016848,2]
[351003700,1738282250194,-500.0,0.00016849,2]
[351003702,1738282250205,-500.0,0.00016849,2]
[351003704,1738282250214,-500.0,0.00016849,2]
[351003706,1738282250223,-186.08,0.00016849,2]
[351003708,1738282250233,-500.0,0.00016849,2]
[351003710,1738282250243,-500.0,0.00016849,2]
[351003712,1738282250252,-500.0,0.00016849,2]
[351003714,1738282250262,-500.0,0.00016849,2]
[351003715,1738282250271,-151.0,0.00016849,2]
[351003717,1738282250280,-151.0,0.00016849,2]
[351003719,1738282250290,-500.0,0.00016849,2]
[351003721,1738282250300,-500.0,0.00016849,2]
[351003723,1738282250309,-151.0,0.00016849,2]
[351003725,1738282250319,-500.0,0.00016849,2]
[351003727,1738282250329,-500.0,0.00016849,2]
[351003729,1738282250340,-584.52,0.00016849,2]
[351003731,1738282250350,-500.0,0.00016849,2]
[351003733,1738282250360,-500.0,0.00016849,2]
[351003735,1738282250370,-212.31,0.00016849,2]
[351003737,1738282250380,-500.0,0.00016849,2]
[351003739,1738282250390,-500.0,0.00016849,2]
[351003741,1738282250399,-500.0,0.00016849,2]
[351003743,1738282250408,-500.0,0.00016849,2]
[351003745,1738282250418,-151.0,0.00016849,2]
[351003748,1738282250434,-151.0,0.00016849,2]
[351003750,1738282250451,-500.0,0.00016849,2]
[351003753,1738282250464,-637.08348732,0.00016849,2]
[351003755,1738282250477,-500.0,0.00016849,2]
[351003757,1738282250491,-1779.75,0.00016849,2]
[351003760,1738282250505,-500.0,0.00016849,2]
[351003762,1738282250520,-500.0,0.00016849,2]
[351003765,1738282250536,-500.0,0.00016849,2]
[351003767,1738282250551,-500.0,0.00016849,2]
[351003770,1738282250564,-1209.5,0.00016849,2]
[351003772,1738282250576,-804.07,0.00016849,2]
[351003774,1738282250590,-500.0,0.00016849,2]
[351003777,1738282250604,-500.0,0.00016849,2]
[351003779,1738282250617,-984.76,0.00016849,2]
[351003781,1738282250627,-500.0,0.00016849,2]
[351003783,1738282250640,-151.0,0.00016849,2]
[351003786,1738282250653,-500.0,0.00016849,2]
[351003788,1738282250668,-1603.06,0.00016849,2]
[351003791,1738282250683,-500.0,0.00016849,2]
[351003793,1738282250699,-500.0,0.00016849,2]
[351003794,1738282250714,-500.0,0.00016849,2]
[351003797,1738282250727,-2217.1,0.00016849,2]
[351003799,1738282250737,-151.0,0.00016849,2]
[351003801,1738282250751,-151.0,0.00016849,2]
[351003803,1738282250765,-6057.22,0.00016849,2]
[351003806,1738282250780,-500.0,0.00016849,2]
[351003808,1738282250790,-151.0,0.00016849,2]
[351003810,1738282250801,-158.252684,0.00016849,2]
[351003812,1738282250815,-17725.04,0.00016849,2]
[351003814,1738282250827,-500.0,0.00016849,2]
[351003816,1738282250839,-500.0,0.00016849,2]
[351003819,1738282250851,-500.0,0.00016849,2]
[351003821,1738282250862,-2497.57,0.00016849,2]
[351003823,1738282250874,-500.0,0.00016849,2]
[351003825,1738282250886,-1805.63,0.00016849,2]
[351003827,1738282250899,-500.0,0.00016849,2]
[351003829,1738282250911,-800.82,0.00016849,2]
[351003832,1738282250923,-3337.89,0.00016849,2]
[351003834,1738282250936,-515.22,0.00016849,2]
[351003836,1738282250948,-500.0,0.00016849,2]
[351003838,1738282250961,-206.734186,0.00016849,2]
[351003840,1738282250973,-450.59985151,0.00016849,2]
[351003842,1738282250984,-206.734186,0.00016849,2]
[351003845,1738282250996,-500.0,0.00016849,2]
[351003847,1738282251009,-500.0,0.00016849,2]
[351003849,1738282251020,-500.0,0.00016849,2]
[351003851,1738282251031,-500.0,0.00016849,2]
[351003853,1738282251045,-382.13042299,0.00016849,2]
[351003855,1738282251061,-500.0,0.00016849,2]
[351003858,1738282251073,-500.0,0.00016849,2]
[351003860,1738282251085,-184.408497,0.00016849,2]
[351003862,1738282251097,-500.0,0.00016849,2]
[351003864,1738282251109,-184.408497,0.00016849,2]
[351003866,1738282251121,-792.17,0.00016849,2]
[351003869,1738282251132,-500.0,0.00016849,2]
[351003871,1738282251145,-1783.16,0.00016849,2]
[351003873,1738282251157,-594.36995499,0.00016849,2]
[351003875,1738282251170,-151.0,0.00016849,2]
[351003876,1738282251183,-1541.87,0.00016849,2]
[351003878,1738282251195,-162.080018,0.00016849,2]
[351003879,1738282251207,-500.0,0.00016849,2]
[351003881,1738282251219,-755.71,0.00016849,2]
[351003882,1738282251232,-158.564945,0.00016849,2]
[351003884,1738282251244,-617.74,0.00016849,2]
[351003885,1738282251256,-2582.3,0.00016849,2]
[351003887,1738282251268,-2657.34,0.00016849,2]
[351003889,1738282251280,-500.0,0.00016849,2]
[351003890,1738282251292,-500.0,0.00016849,2]
[351003892,1738282251303,-500.0,0.00016849,2]
[351003894,1738282251314,-500.0,0.00016849,2]
[351003895,1738282251326,-603.63,0.00016849,2]
[351003897,1738282251338,-151.0,0.00016849,2]
[351003898,1738282251350,-500.0,0.00016849,2]
[351003900,1738282251361,-151.0,0.00016849,2]
[351003902,1738282251373,-500.0,0.00016849,2]
[351003909,1738282251492,-500.0,0.00016849,2]
[351003911,1738282251509,-500.0,0.00016849,2]
[351003912,1738282251519,-420.0,0.0001687,2]
[351003914,1738282251528,-500.72203806,0.00016916,2]
[351003916,1738282251538,-301.69,0.00016985,2]
[351003917,1738282251549,-500.0,0.00016986,2]
[351003919,1738282251559,-500.0,0.00016986,2]
[351003920,1738282251568,-500.0,0.00016986,2]
[351003922,1738282251578,-151.0,0.00016986,2]
[351003924,1738282251589,-151.281249,0.00016986,2]
[351003925,1738282251598,-151.0,0.00016986,2]
[351003927,1738282251607,-500.0,0.00016986,2]
[351003928,1738282251617,-500.0,0.00016986,2]
[351003930,1738282251626,-641.801328,0.00016986,2]
[351003932,1738282251636,-151.0,0.00016986,2]
[351003933,1738282251645,-641.801328,0.00016986,2]
[351003935,1738282251655,-166.08814,0.00016986,2]
[351003936,1738282251664,-151.0,0.00016986,2]
[351003938,1738282251675,-500.0,0.00016986,2]
[351003939,1738282251686,-500.0,0.00016986,2]
[351003941,1738282251695,-151.0,0.00016986,2]
[351003942,1738282251705,-500.0,0.00016986,2]
[351003944,1738282251715,-596.59591009,0.00016986,2]
[351003945,1738282251723,-584.52,0.00016986,2]
[351003947,1738282251733,-247.685621,0.00016986,2]
[351003948,1738282251742,-247.685621,0.00016986,2]
[351003950,1738282251753,-500.0,0.00016986,2]
[351003951,1738282251763,-151.0,0.00016986,2]
[351003952,1738282251772,-500.0,0.00016986,2]
[351003954,1738282251782,-500.0,0.00016986,2]
[351003955,1738282251791,-500.0,0.00016986,2]
[351003957,1738282251801,-500.0,0.00016986,2]
[351003959,1738282251810,-500.0,0.00016986,2]
[351003960,1738282251819,-211.76,0.00016986,2]
[351003962,1738282251828,-151.0,0.00016986,2]
[351003963,1738282251839,-500.0,0.00016986,2]
[351003965,1738282251848,-1779.75,0.00016986,2]
[351003967,1738282251858,-197.3,0.00016986,2]
[351003968,1738282251867,-500.0,0.00016986,2]
[351003970,1738282251876,-500.0,0.00016986,2]
[351003971,1738282251885,-500.0,0.00016986,2]
[351003973,1738282251895,-1209.5,0.00016986,2]
[351003974,1738282251904,-804.07,0.00016986,2]
[351003976,1738282251913,-479.668886,0.00016986,2]
[351003977,1738282251923,-517.13008383,0.00016986,2]
[351003979,1738282251933,-479.668886,0.00016986,2]
[351003981,1738282251942,-500.0,0.00016986,2]
[351003982,1738282251952,-984.76,0.00016986,2]
[351003983,1738282251962,-500.0,0.00016986,2]
[351003985,1738282251973,-328.206416,0.00016986,2]
[351003987,1738282251984,-151.0,0.00016986,2]
[351003988,1738282251993,-500.0,0.00016986,2]
[351003990,1738282252003,-1603.06,0.00016986,2]
[351003992,1738282252013,-328.206416,0.00016986,2]
[351003993,1738282252022,-500.0,0.00016986,2]
[351003995,1738282252032,-500.0,0.00016986,2]
[351003996,1738282252041,-173.731623,0.00016986,2]
[351003998,1738282252050,-500.0,0.00016986,2]
[351004000,1738282252060,-2217.1,0.00016986,2]
[351004001,1738282252069,-173.731623,0.00016986,2]
[351004003,1738282252078,-151.0,0.00016986,2]
[351004005,1738282252089,-6057.22,0.00016986,2]
[351004006,1738282252098,-151.0,0.00016986,2]
[351004008,1738282252107,-500.0,0.00016986,2]
[351004009,1738282252117,-151.0,0.00016986,2]
[351004011,1738282252126,-17725.04,0.00016986,2]
[351004013,1738282252136,-500.0,0.00016986,2]
[351004014,1738282252145,-500.0,0.00016986,2]
[351004016,1738282252154,-500.0,0.00016986,2]
[351004017,1738282252164,-2497.57,0.00016986,2]
[351004019,1738282252175,-500.0,0.00016986,2]
[351004021,1738282252184,-1805.63,0.00016986,2]
[351004022,1738282252193,-500.0,0.00016986,2]
[351004024,1738282252203,-800.82,0.00016986,2]
[351004025,1738282252213,-3337.89,0.00016986,2]
[351004027,1738282252222,-515.22,0.00016986,2]
[351004029,1738282252231,-500.0,0.00016986,2]
[351004030,1738282252239,-206.734186,0.00016986,2]
[351004032,1738282252248,-206.734186,0.00016986,2]
[351004033,1738282252257,-500.0,0.00016986,2]
[351004035,1738282252267,-500.0,0.00016986,2]
[351004037,1738282252276,-358.586509,0.00016986,2]
[351004038,1738282252286,-500.0,0.00016986,2]
[351004040,1738282252295,-358.586509,0.00016986,2]
[351004042,1738282252304,-500.0,0.00016986,2]
[351004043,1738282252314,-500.0,0.00016986,2]
[351004045,1738282252323,-500.0,0.00016986,2]
[351004047,1738282252333,-184.408497,0.00016986,2]
[351004048,1738282252343,-500.0,0.00016986,2]
[351004050,1738282252352,-184.408497,0.00016986,2]
[351004051,1738282252360,-792.17,0.00016986,2]
[351004053,1738282252370,-500.0,0.00016986,2]
[351004055,1738282252379,-1783.16,0.00016986,2]
[351004056,1738282252389,-151.0,0.00016986,2]
[351004058,1738282252399,-1541.87,0.00016986,2]
[351004060,1738282252408,-500.0,0.00016986,2]
[351004061,1738282252417,-755.71,0.00016986,2]
[351004063,1738282252427,-617.74,0.00016986,2]
[351004064,1738282252436,-2582.3,0.00016986,2]
[351004066,1738282252446,-2657.34,0.00016986,2]
[351004068,1738282252455,-500.0,0.00016986,2]
[351004069,1738282252465,-500.0,0.00016986,2]
[351004071,1738282252474,-410.88125609,0.00016986,2]
[351004073,1738282252484,-500.0,0.00016986,2]
[351004074,1738282252494,-603.63,0.00016986,2]
[351004076,1738282252503,-151.0,0.00016986,2]
[351004078,1738282252512,-500.0,0.00016986,2]
[351004079,1738282252521,-259.21925,0.00016986,2]
[351004081,1738282252530,-500.0,0.00016986,2]
[351004083,1738282252539,-500.0,0.00016986,2]
[351004084,1738282252548,-173.29454244,0.00017008,2]
[351004086,1738282252558,-501.81691754,0.00017021,2]
[351004087,1738282252567,-1000.0,0.00017021,2]
[351004089,1738282252577,-500.0,0.00017026,2]
[351004091,1738282252588,-240.59549277,0.00017031,2]
[351004092,1738282252597,-259.80875726,0.00017031,2]
[351004094,1738282252607,-500.0,0.00017031,2]
[351004096,1738282252617,-500.0,0.00017031,2]
[351004097,1738282252626,-310.38736513,0.00017033,2]
[351004099,1738282252635,-500.0,0.00017038,2]
[351004101,1738282252645,-225.16824083,0.000171,2]
[351004102,1738282252655,-151.0,0.000171,2]
[351004104,1738282252665,-726.705562,0.00017104,2]
[351004106,1738282252678,-726.705562,0.00017104,2]
[351004107,1738282252688,-151.0,0.00017104,2]
[351004109,1738282252699,-170.155412,0.00017104,2]
[351004111,1738282252708,-170.155412,0.00017104,2]
[351004112,1738282252718,-332.919864,0.00017104,2]
[351004114,1738282252729,-332.919864,0.00017104,2]
[351004116,1738282252739,-151.0,0.00017104,2]
[351004117,1738282252748,-276.366139,0.00017104,2]
[351004119,1738282252759,-151.0,0.00017104,2]
[351004121,1738282252768,-151.0,0.00017104,2]
[351004122,1738282252777,-151.0,0.00017104,2]
[351004124,1738282252787,-151.0,0.00017104,2]
[351004126,1738282252796,-153.0,0.00017104,2]
[351004127,1738282252806,-153.0,0.00017104,2]
[351004129,1738282252815,-153.0,0.00017104,2]
[351004131,1738282252824,-153.0,0.00017104,2]
[351004132,1738282252834,-153.0,0.00017104,2]
[351004134,1738282252844,-153.0,0.00017104,2]
[351004136,1738282252853,-153.0,0.00017104,2]
[351004137,1738282252862,-153.0,0.00017104,2]
[351004139,1738282252872,-153.0,0.00017104,2]
[351004140,1738282252881,-153.0,0.00017104,2]
[351004142,1738282252891,-153.0,0.00017104,2]
[351004144,1738282252900,-153.0,0.00017104,2]
[351004145,1738282252909,-153.0,0.00017104,2]
[351004147,1738282252919,-153.0,0.00017104,2]
[351004149,1738282252928,-153.0,0.00017104,2]
[351004150,1738282252937,-153.0,0.00017104,2]
[351004152,1738282252947,-153.0,0.00017104,2]
[351004154,1738282252957,-153.0,0.00017104,2]
[351004155,1738282252966,-153.0,0.00017104,2]
[351004157,1738282252976,-153.0,0.00017104,2]
[351004158,1738282252986,-153.0,0.00017104,2]
[351004160,1738282252995,-153.0,0.00017104,2]
[351004162,1738282253005,-153.0,0.00017104,2]
[351004163,1738282253015,-153.0,0.00017104,2]
[351004165,1738282253024,-153.0,0.00017104,2]
[351004167,1738282253036,-153.0,0.00017104,2]
[351004169,1738282253045,-153.0,0.00017104,2]
[351004170,1738282253055,-153.0,0.00017104,2]
[351004172,1738282253065,-1000.0,0.00017121,2]
[351004174,1738282253075,-151.0,0.00017123,2]
[351004175,1738282253084,-151.0,0.00017123,2]
[351004177,1738282253096,-180.876821,0.00017123,2]
[351004178,1738282253105,-500.0,0.00017123,2]
[351004180,1738282253116,-500.0,0.00017123,2]
[351004182,1738282253125,-154.34660232,0.00017123,2]
[351004183,1738282253135,-500.0,0.00017123,2]
[351004185,1738282253144,-500.0,0.00017123,2]
[351004187,1738282253154,-500.0,0.00017123,2]
[351004188,1738282253163,-500.0,0.00017123,2]
[351004190,1738282253173,-151.0,0.00017123,2]
[351004192,1738282253183,-500.0,0.00017123,2]
[351004193,1738282253193,-584.52,0.00017123,2]
[351004195,1738282253202,-247.685621,0.00017123,2]
[351004197,1738282253211,-247.685621,0.00017123,2]
[351004198,1738282253220,-501.94045708,0.00017123,2]
[351004200,1738282253231,-151.0,0.00017123,2]
[351004202,1738282253241,-500.0,0.00017123,2]
[351004203,1738282253251,-500.0,0.00017123,2]
[351004205,1738282253260,-500.0,0.00017123,2]
[351004206,1738282253269,-500.0,0.00017123,2]
[351004208,1738282253279,-500.0,0.00017123,2]
[351004210,1738282253289,-151.0,0.00017123,2]
[351004212,1738282253298,-500.0,0.00017123,2]
[351004214,1738282253307,-1779.75,0.00017123,2]
[351004216,1738282253317,-500.0,0.00017123,2]
[351004218,1738282253326,-500.0,0.00017123,2]
[351004220,1738282253337,-500.0,0.00017123,2]
[351004222,1738282253346,-1209.5,0.00017123,2]
[351004224,1738282253355,-804.07,0.00017123,2]
[351004226,1738282253365,-479.668886,0.00017123,2]
[351004228,1738282253375,-479.668886,0.00017123,2]
[351004229,1738282253385,-500.0,0.00017123,2]
[351004231,1738282253394,-984.76,0.00017123,2]
[351004233,1738282253404,-500.0,0.00017123,2]
[351004235,1738282253414,-328.206416,0.00017123,2]
[351004237,1738282253424,-259.68538367,0.00017123,2]
[351004239,1738282253433,-500.0,0.00017123,2]
[351004241,1738282253443,-1603.06,0.00017123,2]
[351004243,1738282253452,-328.206416,0.00017123,2]
[351004245,1738282253542,-500.0,0.00017123,2]
[351004246,1738282253556,-500.0,0.00017123,2]
[351004247,1738282253567,-173.731623,0.00017123,2]
[351004248,1738282253577,-500.0,0.00017123,2]
[351004249,1738282253589,-2217.1,0.00017123,2]
[351004250,1738282253598,-173.731623,0.00017123,2]
[351004251,1738282253609,-151.0,0.00017123,2]
[351004252,1738282253619,-6057.22,0.00017123,2]
[351004253,1738282253629,-151.0,0.00017123,2]
[351004254,1738282253640,-500.0,0.00017123,2]
[351004255,1738282253649,-151.0,0.00017123,2]
[351004256,1738282253658,-17725.04,0.00017123,2]
[351004257,1738282253668,-500.0,0.00017123,2]
[351004258,1738282253682,-575.12,0.00017123,2]
[351004259,1738282253692,-500.0,0.00017123,2]
[351004260,1738282253701,-2497.57,0.00017123,2]
[351004261,1738282253712,-500.0,0.00017123,2]
[351004262,1738282253722,-1805.63,0.00017123,2]
[351004263,1738282253732,-500.0,0.00017123,2]
[351004264,1738282253741,-800.82,0.00017123,2]
[351004265,1738282253753,-3337.89,0.00017123,2]
[351004266,1738282253764,-515.22,0.00017123,2]
[351004267,1738282253773,-500.0,0.00017123,2]
[351004268,1738282253782,-206.734186,0.00017123,2]
[351004269,1738282253791,-206.734186,0.00017123,2]
[351004270,1738282253802,-500.0,0.00017123,2]
[351004271,1738282253811,-358.586509,0.00017123,2]
[351004272,1738282253820,-500.0,0.00017123,2]
[351004273,1738282253829,-358.586509,0.00017123,2]
[351004274,1738282253838,-337.64829591,0.00017123,2]
[351004275,1738282253848,-500.0,0.00017123,2]
[351004276,1738282253857,-500.0,0.00017123,2]
[351004277,1738282253867,-184.408497,0.00017123,2]
[351004279,1738282253876,-383.63085224,0.00017123,2]
[351004280,1738282253885,-184.408497,0.00017123,2]
[351004281,1738282253895,-792.17,0.00017123,2]
[351004282,1738282253903,-500.0,0.00017123,2]
[351004284,1738282253913,-1783.16,0.00017123,2]
[351004285,1738282253922,-151.0,0.00017123,2]
[351004287,1738282253931,-1541.87,0.00017123,2]
[351004289,1738282253940,-500.0,0.00017123,2]
[351004291,1738282253950,-755.71,0.00017123,2]
[351004293,1738282253959,-617.74,0.00017123,2]
[351004295,1738282253969,-2582.3,0.00017123,2]
[351004297,1738282253978,-2657.34,0.00017123,2]
[351004299,1738282253987,-500.0,0.00017123,2]
[351004301,1738282253996,-500.0,0.00017123,2]
[351004302,1738282254006,-500.0,0.00017123,2]